fUSD/lending_fUSD_20251223
["ID","MTS","AMOUNT","RATE_DAILY","PERIOD"]
[399565624,1766489432378,-87.13637726,0.00013708,2]
[399565625,1766489432387,-300.0,0.00013708,2]
[399565626,1766489432396,-150.0,0.00013708,2]
[399565627,1766489432405,-189.89561481,0.00013709,2]
[399565628,1766489432414,-236.18126601,0.00013709,2]
[399565629,1766489432423,-500.0,0.00013709,2]
[399565630,1766489432432,-326.36188851,0.00013709,2]
[399565631,1766489432441,-500.0,0.00013709,2]
[399565632,1766489432451,-500.0,0.00013709,2]
[399565633,1766489432459,-407.6376526,0.00013709,2]
[399565634,1766489432468,-500.0,0.00013709,2]
[399565635,1766489432477,-500.0,0.00013709,2]
[399565636,1766489432490,-591.22086736,0.00013709,2]
[399565637,1766489432499,-500.0,0.00013709,2]
[399565638,1766489432508,-500.0,0.00013709,2]
[399565639,1766489432518,-500.0,0.00013709,2]
[399565640,1766489432527,-500.0,0.00013709,2]
[399565641,1766489432536,-500.0,0.00013709,2]
[399565643,1766489432545,-500.0,0.00013709,2]
[399565645,1766489432554,-500.0,0.00013709,2]
[399565647,1766489432563,-500.0,0.00013709,2]
[399565649,1766489432572,-500.0,0.00013709,2]
[399565651,1766489432581,-500.0,0.00013709,2]
[399565653,1766489432590,-500.0,0.00013709,2]
[399565655,1766489432600,-591.18176815,0.00013709,2]
[399565657,1766489432609,-1000.0,0.0001371,2]
[399565659,1766489432618,-38487.49268845,0.0001371,2]
[399565661,1766489432630,-68952.62735836,0.0001371,2]
[399565663,1766489432642,-32309.87859366,0.0001371,2]
[399565670,1766489438279,-345.70008883,0.0001361,2]
[399565671,1766489438291,-2260.55941117,0.0001361,2]
[399565672,1766489438300,-2808.27373484,0.0001371,2]
[399565673,1766489438387,-2563.97277152,0.0001371,2]
[399565674,1766489438398,-39483.348,0.0001371,2]
[399565675,1766489438410,-8355.461751,0.0001371,2]
[399565676,1766489438420,-35967.05744334,0.0001371,2]
[399565677,1766489438441,-421.96926458,0.0001371,2]
[399565688,1766489440291,-1339.99496718,0.0001371,2]
[399565689,1766489440304,-549.76957592,0.0001371,2]
[399565690,1766489440318,-306.069,0.0001371,2]
[399565691,1766489440332,-6443.11814217,0.0001371,2]
[399565692,1766489440350,-1043.55465848,0.0001371,2]
[399565693,1766489440421,-432.1692364,0.0001371,2]
[399565694,1766489440437,-760535.2428141,0.0001371,2]
[399565695,1766489440446,-179.93,0.0001383,2]
[399565696,1766489440456,-166.66,0.00013869,2]
[399565697,1766489440466,-1345.80388438,0.00013993,2]
[399565698,1766489440475,-500.0,0.0001401,2]
[399565699,1766489440484,-500.0,0.00014082,2]
[399565700,1766489440494,-166.66,0.00014161,2]
[399565701,1766489440504,-179.93,0.00014225,2]
[399565702,1766489440514,-250.0,0.00014343,2]
[399565703,1766489440523,-1345.80388438,0.00014357,2]
[399565704,1766489440532,-166.66,0.00014453,2]
[399565705,1766489440541,-3240.0,0.00014468,2]
[399565706,1766489440550,-500.0,0.00014493,2]
[399565707,1766489440559,-179.93,0.0001462,2]
[399565708,1766489440569,-1345.80388438,0.0001472,2]
[399565709,1766489440578,-166.66,0.00014745,2]
[399565710,1766489440587,-255.0,0.00014818,2]
[399565711,1766489440597,-200.0,0.0001496,2]
[399565712,1766489440606,-207.4,0.0001496,2]
[399565713,1766489440615,-215.0738,0.0001496,2]
[399565714,1766489440624,-223.0315306,0.0001496,2]
[399565715,1766489440633,-231.28369723,0.0001496,2]
[399565716,1766489440646,-239.84119403,0.0001496,2]
[399565717,1766489440655,-248.71531821,0.0001496,2]
[399565718,1766489440664,-257.91778498,0.0001496,2]
[399565719,1766489440673,-267.46074303,0.0001496,2]
[399565720,1766489440682,-277.35679052,0.0001496,2]
[399565721,1766489440692,-179.93,0.00015015,2]
[399565722,1766489440702,-420.0,0.00015022,2]
[399565723,1766489440711,-166.66,0.00015037,2]
[399565724,1766489440720,-1680.0,0.00015079,2]
[399565725,1766489440729,-1345.80388438,0.00015083,2]
[399565726,1766489440739,-150.0,0.00015183,2]
[399565727,1766489440748,-200.0,0.00015237,2]
[399565728,1766489440757,-166.66,0.00015329,2]
[399565729,1766489440767,-448.31360974,0.00015415,2]
[399565730,1766489440776,-1345.80388438,0.00015447,2]
[399565731,1766489440785,-200.0,0.00015749,2]
[399565732,1766489440795,-500.0,0.00015783,2]
[399565733,1766489440803,-177.11753301,0.00015783,2]
[399565734,1766489440814,-500.1214449,0.00015783,2]
[399565735,1766489440823,-500.0,0.00015783,2]
[399565736,1766489440832,-500.0,0.00015783,2]
[399565737,1766489440842,-500.0,0.00015783,2]
[399565738,1766489440851,-165.59889929,0.00015783,2]
[399565739,1766489440861,-500.0,0.00015783,2]
[399565740,1766489440873,-201.7413727,0.00015783,2]
[399565741,1766489440882,-500.23725067,0.00015783,2]
[399565742,1766489440891,-500.0,0.00015783,2]
[399565743,1766489440907,-500.57373942,0.00015783,2]
[399565744,1766489440920,-500.0,0.00015783,2]
[399565745,1766489440935,-500.0,0.00015783,2]
[399565746,1766489440944,-500.0,0.00015783,2]
[399565747,1766489440955,-500.52659866,0.00015783,2]
[399565748,1766489440967,-500.08130902,0.00015783,2]
[399565749,1766489440976,-500.0,0.00015783,2]
[399565750,1766489440985,-165.51567643,0.00015783,2]
[399565751,1766489440996,-500.0,0.00015783,2]
[399565752,1766489441005,-500.0,0.00015783,2]
[399565753,1766489441014,-165.37952363,0.00015783,2]
[399565754,1766489441024,-500.0,0.00015783,2]
[399565755,1766489441034,-500.82264109,0.00015783,2]
[399565756,1766489441043,-160.29255705,0.00015783,2]
[399565757,1766489441056,-500.0,0.00015783,2]
[399565758,1766489441067,-500.2502142,0.00015783,2]
[399565759,1766489441078,-1000.0,0.00015795,2]
[399565760,1766489441091,-1345.80388438,0.0001581,2]
[399565761,1766489441100,-12450.81,0.00015938,2]
[399565762,1766489441110,-433.0,0.00016025,2]
[399565763,1766489441121,-4825.48,0.00016172,2]
[399565764,1766489441130,-1345.80388438,0.00016173,2]
[399565765,1766489441139,-5000.00311262,0.000162,5]
[399565766,1766489441149,-4024.22,0.00016217,2]
[399565767,1766489441160,-370.91026638,0.00016329,2]
[399565768,1766489441169,-1000.0,0.00016331,2]
[399565769,1766489441179,-478.40457031,0.00016438,2]
[399565770,1766489441188,-480.0,0.00016463,2]
[399565771,1766489441198,-1345.80388438,0.00016537,2]
[399565772,1766489441207,-2351.0,0.00016587,2]
[399565773,1766489441216,-1730.388284,0.0001666,2]
[399565774,1766489441228,-2068.87,0.00016795,2]
[399565775,1766489441239,-196.22588074,0.00016878,2]
[399565776,1766489441250,-645.71507959,0.000169,2]
[399565777,1766489441259,-1345.80388438,0.000169,2]
[399565778,1766489441271,-1958.34440412,0.000169,2]
[399565779,1766489441282,-210.28117431,0.000169,2]
[399565780,1766489441292,-228.13802694,0.000169,2]
[399565781,1766489441303,-507.60446218,0.000169,2]
[399565782,1766489441312,-908.53960925,0.000169,2]
[399565783,1766489441323,-300.0,0.00016999,2]
[399565784,1766489441332,-300.0,0.00016999,2]
[399565785,1766489441342,-1941652.90846063,0.00017,2]
[399565786,1766489441352,-1148674.96903982,0.00017,2]
[399565787,1766489441361,-250.0,0.00017,2]
[399565788,1766489441370,-151.0,0.00017,2]
[399565789,1766489441379,-250.205093,0.00017,2]
[399565790,1766489441388,-210.288625,0.00017,2]
[399565791,1766489441397,-1793966.89815486,0.00017,2]
[399565792,1766489441414,-512.27802841,0.00017,2]
[399565793,1766489441425,-1235.1151496,0.00017,2]
[399565794,1766489441438,-4312.36922466,0.00017,2]
[399565804,1766489443317,-272.83531989,0.0001373,2]
[399565805,1766489443326,-361.08839786,0.00017,2]
[399565806,1766489443338,-47214.88064234,0.00017,2]
[399565807,1766489443371,-502.99139351,0.00017,2]
[399565808,1766489443382,-2279.70584383,0.00017,2]
[399565809,1766489443429,-2145.14831811,0.00017,2]
[399565810,1766489443440,-878.1,0.00017,2]
[399565811,1766489443604,-637.30701203,0.00017,2]
[399565812,1766489443616,-1035.94218875,0.00017,2]
[399565813,1766489443627,-1014.09508778,0.00017,2]
[399565814,1766489443642,-257.11943715,0.00017,2]
[399565815,1766489443654,-16015.93271301,0.00017,2]
[399565817,1766489446344,-1318.48816687,0.00017,2]
[399565818,1766489446676,-806.17481721,0.00017,2]
[399565819,1766489853625,515.74327916,0.000176,30]
[399565820,1766489947334,517.39768037,0.00014,3]
[399565821,1766490135383,576.54466422,0.000176,30]
[399565822,1766490524648,208.0,0.00014,3]
[399565823,1766490631324,-816.659,0.00013338,2]
[399565824,1766490631333,-659.26712987,0.00013509,2]
[399565825,1766490631345,-540.73287013,0.00013509,2]
[399565826,1766490631354,-300.0,0.00013509,2]
[399565827,1766490631363,-300.0,0.00013509,2]
[399565828,1766490631373,-645.71507959,0.0001351,2]
[399565829,1766490631382,-62.01676633,0.0001351,2]
[399565830,1766490631393,-1300.0,0.0001351,2]
[399565831,1766490631404,-281.51962833,0.0001351,2]
[399565832,1766490631413,-187.12883154,0.0001351,2]
[399565833,1766490631422,-181.89021326,0.0001351,2]
[399565834,1766490631431,-1821.42793835,0.0001351,2]
[399565835,1766490631442,-1060.92728506,0.0001351,2]
[399565836,1766490631453,-282.33286881,0.0001351,2]
[399565837,1766490631464,-9869.80913775,0.0001351,2]
[399565838,1766490631476,-6330.04309905,0.0001351,2]
[399565839,1766490631491,-860.0,0.0001351,2]
[399565840,1766490631502,-1342.64096061,0.0001351,2]
[399565841,1766490631513,-3124.78462949,0.0001351,2]
[399565842,1766490631523,-824.83,0.0001351,2]
[399565843,1766490631534,-990.02398659,0.0001351,2]
[399565844,1766490631544,-5587.46274898,0.0001351,2]
[399565845,1766490631555,-344.81,0.0001351,2]
[399565846,1766490631566,-2010.45162671,0.0001351,2]
[399565847,1766490631577,-477.97880591,0.0001351,2]
[399565848,1766490631588,-2354.96308394,0.0001351,2]
[399565849,1766490631599,-4368.21207833,0.0001351,2]
[399565850,1766490637407,-500.0,0.00013509,2]
[399565851,1766490637417,-428.45332196,0.00013509,2]
[399565852,1766490637427,-165.32688621,0.00013509,2]
[399565853,1766490637437,-167.94393091,0.00013509,2]
[399565854,1766490637447,-181.7356315,0.00013509,2]
[399565855,1766490637466,-122.02955437,0.00013509,2]
[399565856,1766490637475,-500.0,0.00013509,2]
[399565857,1766490637485,-500.0,0.00013509,2]
[399565858,1766490637495,-176.19996857,0.00013509,2]
[399565859,1766490637504,-29570.20794689,0.0001351,2]
[399565873,1766490639793,-3828.86735665,0.0001351,2]
[399565874,1766490639805,-5678.50813704,0.0001351,2]
[399565875,1766490639815,-2038.3362421,0.0001351,2]
[399565876,1766490639826,-644.20590704,0.0001351,2]
[399565877,1766490639837,-916589.1761607,0.0001351,2]
[399565878,1766490639846,-150.0,0.00013601,2]
[399565879,1766490639855,-200.0,0.00013602,2]
[399565880,1766490639864,-151.0,0.00013602,2]
[399565881,1766490639873,-151.0,0.00013602,2]
[399565882,1766490639882,-151.0,0.00013602,2]
[399565883,1766490639891,-151.0,0.00013602,2]
[399565884,1766490639900,-151.0,0.00013602,2]
[399565885,1766490639909,-151.0,0.00013602,2]
[399565886,1766490639919,-151.0,0.00013602,2]
[399565887,1766490639928,-151.0,0.00013602,2]
[399565888,1766490639937,-151.0,0.00013602,2]
[399565889,1766490639946,-200.0,0.00013602,2]
[399565890,1766490639955,-151.0,0.00013602,2]
[399565891,1766490639964,-151.0,0.00013602,2]
[399565892,1766490639974,-151.0,0.00013602,2]
[399565893,1766490639983,-151.0,0.00013602,2]
[399565894,1766490639992,-151.0,0.00013602,2]
[399565895,1766490640002,-151.0,0.00013602,2]
[399565896,1766490640011,-151.0,0.00013602,2]
[399565897,1766490640020,-151.0,0.00013602,2]
[399565898,1766490640030,-151.0,0.00013602,2]
[399565899,1766490640039,-151.0,0.00013602,2]
[399565900,1766490640052,-151.0,0.00013602,2]
[399565901,1766490640061,-151.0,0.00013602,2]
[399565902,1766490640070,-1000.0,0.0001361,2]
[399565903,1766490640080,-587.37,0.00013699,2]
[399565904,1766490640089,-500.0,0.00013709,2]
[399565905,1766490640098,-500.0,0.00013709,2]
[399565906,1766490640107,-196.6,0.00013709,2]
[399565907,1766490640116,-1643.5363946,0.00013887,2]
[399565908,1766490640125,-1643.5363946,0.00014263,2]
[399565909,1766490640134,-1643.5363946,0.0001464,2]
[399565910,1766490640143,-250.0,0.00014672,2]
[399565911,1766490640152,-578.20924308,0.00014706,2]
[399565912,1766490640161,-1108.0,0.00014706,2]
[399565913,1766490640170,-500.0,0.00014706,2]
[399565914,1766490640179,-500.0,0.00014706,2]
[399565915,1766490640188,-500.0,0.00014706,2]
[399565916,1766490640197,-500.0,0.00014706,2]
[399565917,1766490640207,-500.0,0.00014706,2]
[399565918,1766490640216,-500.0,0.00014706,2]
[399565919,1766490640228,-500.0,0.00014706,2]
[399565920,1766490640237,-500.0,0.00014706,2]
[399565921,1766490640247,-500.0,0.00014706,2]
[399565922,1766490640256,-500.0,0.00014706,2]
[399565923,1766490640266,-500.0,0.00014706,2]
[399565924,1766490640276,-574.12855637,0.00014706,2]
[399565925,1766490640285,-500.0,0.00014706,2]
[399565926,1766490640295,-250.0,0.00014706,2]
[399565927,1766490640303,-500.0,0.00014706,2]
[399565928,1766490640313,-250.0,0.00014706,2]
[399565929,1766490640322,-250.0,0.00014706,2]
[399565930,1766490640331,-500.0,0.00014706,2]
[399565931,1766490640340,-500.0,0.00014706,2]
[399565932,1766490640349,-250.0,0.00014706,2]
[399565933,1766490640358,-352.62790917,0.00014706,2]
[399565934,1766490640367,-250.0,0.00014706,2]
[399565935,1766490640376,-620.0,0.00014706,2]
[399565936,1766490640385,-322.6107,0.00014706,2]
[399565937,1766490640394,-250.0,0.00014706,2]
[399565938,1766490640405,-250.0,0.00014706,2]
[399565939,1766490640414,-250.0,0.00014706,2]
[399565940,1766490640423,-250.0,0.00014706,2]
[399565941,1766490640432,-250.0,0.00014706,2]
[399565942,1766490640441,-250.0,0.00014706,2]
[399565943,1766490640451,-250.0,0.00014706,2]
[399565944,1766490640460,-250.0,0.00014706,2]
[399565945,1766490640469,-250.0,0.00014706,2]
[399565946,1766490640479,-250.0,0.00014706,2]
[399565947,1766490640488,-250.0,0.00014706,2]
[399565948,1766490640498,-250.0,0.00014706,2]
[399565949,1766490640507,-250.0,0.00014706,2]
[399565950,1766490640516,-276.19490362,0.00014706,2]
[399565951,1766490640526,-250.0,0.00014706,2]
[399565952,1766490640536,-250.0,0.00014706,2]
[399565953,1766490640545,-250.0,0.00014706,2]
[399565954,1766490640554,-250.0,0.00014706,2]
[399565955,1766490640563,-250.0,0.00014706,2]
[399565956,1766490640572,-250.0,0.00014706,2]
[399565957,1766490640582,-200.0,0.00014706,2]
[399565958,1766490640591,-250.0,0.00014706,2]
[399565959,1766490640600,-207.4,0.00014706,2]
[399565960,1766490640609,-250.0,0.00014706,2]
[399565961,1766490640619,-215.0738,0.00014706,2]
[399565962,1766490640628,-250.0,0.00014706,2]
[399565963,1766490640637,-250.0,0.00014706,2]
[399565964,1766490640646,-223.0315306,0.00014706,2]
[399565965,1766490640655,-231.28369723,0.00014706,2]
[399565966,1766490640664,-239.84119403,0.00014706,2]
[399565967,1766490640673,-248.71531821,0.00014706,2]
[399565968,1766490640683,-257.91778498,0.00014706,2]
[399565969,1766490640692,-267.46074303,0.00014706,2]
[399565970,1766490640701,-277.35679052,0.00014706,2]
[399565971,1766490640710,-151.0,0.00014706,2]
[399565972,1766490640719,-255.0,0.00014716,2]
[399565973,1766490640729,-448.31360974,0.00014727,2]
[399565974,1766490640738,-420.0,0.00014807,2]
[399565975,1766490640747,-420.0,0.00014807,2]
[399565976,1766490640756,-2068.87,0.00014857,2]
[399565977,1766490640766,-1680.0,0.0001486,2]
[399565978,1766490640776,-4825.48,0.00014913,2]
[399565979,1766490640785,-150.0,0.0001497,2]
[399565980,1766490640794,-1643.5363946,0.00015017,2]
[399565981,1766490640803,-155.12,0.00015084,2]
[399565982,1766490640816,-181.89021324,0.00015205,2]
[399565983,1766490640825,-6068.09,0.0001521,2]
[399565984,1766490640835,-595.37131296,0.00015254,2]
[399565985,1766490640844,-1643.5363946,0.00015393,2]
[399565986,1766490640853,-1643.5363946,0.0001577,2]
[399565987,1766490640862,-500.0,0.00015783,2]
[399565988,1766490640871,-165.59889929,0.00015783,2]
[399565989,1766490640880,-500.0,0.00015783,2]
[399565990,1766490640889,-177.11753301,0.00015783,2]
[399565991,1766490640899,-500.0,0.00015783,2]
[399565992,1766490640908,-500.0,0.00015783,2]
[399565993,1766490640917,-500.0,0.00015783,2]
[399565994,1766490640927,-201.7413727,0.00015783,2]
[399565995,1766490640936,-500.23725067,0.00015783,2]
[399565996,1766490640945,-500.0,0.00015783,2]
[399565997,1766490640955,-500.0,0.00015783,2]
[399565998,1766490640964,-500.57373942,0.00015783,2]
[399565999,1766490640974,-500.0,0.00015783,2]
[399566000,1766490640983,-500.0,0.00015783,2]
[399566001,1766490640992,-500.1214449,0.00015783,2]
[399566002,1766490641003,-500.0,0.00015783,2]
[399566003,1766490641012,-500.82264109,0.00015783,2]
[399566004,1766490641021,-165.51567643,0.00015783,2]
[399566005,1766490641030,-500.08130902,0.00015783,2]
[399566006,1766490641039,-500.0,0.00015783,2]
[399566007,1766490641048,-165.37952363,0.00015783,2]
[399566008,1766490641058,-500.0,0.00015783,2]
[399566009,1766490641067,-160.29255705,0.00015783,2]
[399566010,1766490641077,-500.0,0.00015783,2]
[399566011,1766490641086,-500.52659866,0.00015783,2]
[399566012,1766490641096,-500.0,0.00015783,2]
[399566013,1766490641106,-500.0,0.00015783,2]
[399566014,1766490641115,-500.2502142,0.00015783,2]
[399566015,1766490641125,-617.40005154,0.00015802,2]
[399566016,1766490641134,-8429.0,0.00015837,2]
[399566017,1766490641144,-433.0,0.00015927,2]
[399566018,1766490641153,-1108.0,0.00016075,2]
[399566019,1766490641162,-718.62777009,0.00016075,2]
[399566020,1766490641173,-334.5472959,0.00016075,2]
[399566021,1766490641182,-370.91026638,0.00016075,2]
[399566022,1766490641191,-152.00744986,0.00016075,2]
[399566023,1766490641201,-1643.5363946,0.00016147,2]
[399566024,1766490641210,-480.0,0.0001623,2]
[399566025,1766490641219,-587.0,0.0001623,2]
[399566026,1766490641232,-1000.0,0.00016331,2]
[399566027,1766490641241,-207.4,0.00016341,2]
[399566028,1766490641250,-2351.0,0.00016346,2]
[399566029,1766490641259,-640.24385345,0.0001635,2]
[399566030,1766490641270,-478.40457031,0.00016438,2]
[399566031,1766490641280,-1643.5363946,0.00016523,2]
[399566032,1766490641289,-247.7695039,0.00016586,2]
[399566033,1766490641298,-1730.388284,0.0001666,2]
[399566034,1766490641308,-166.66,0.00016841,2]
[399566035,1766490641319,-196.22588074,0.00016878,2]
[399566036,1766490641328,-663.93287602,0.00016898,2]
[399566037,1766490641338,-10000.0,0.000169,2]
[399566038,1766490641347,-499.28189599,0.000169,2]
[399566039,1766490641356,-1643.5363946,0.000169,2]
[399566040,1766490641366,-181.89021324,0.000169,2]
[399566041,1766490641375,-1958.34440412,0.000169,2]
[399566042,1766490641384,-908.53960925,0.000169,2]
[399566043,1766490641394,-228.13802694,0.000169,2]
[399566044,1766490641403,-210.28117431,0.000169,2]
[399566045,1766490641412,-220.75528452,0.0001699,2]
[399566046,1766490641421,-11643.9381699,0.00016993,2]
[399566047,1766490641430,-1997.6219776,0.00016993,2]
[399566048,1766490641440,-1119.87458418,0.00016999,5]
[399566049,1766490641449,-1119.87458418,0.00016999,5]
[399566050,1766490641458,-300.0,0.00016999,2]
[399566051,1766490641468,-4683646.73774031,0.00017,2]
[399566052,1766490641481,-1375.598704,0.00017,2]
[399566053,1766490641492,-10250.8,0.00017,2]
[399566054,1766490641503,-1759.8369796,0.00017,2]
[399566055,1766490641514,-500.3348243,0.00017,2]
[399566066,1766490642609,-151.0,0.00015257,2]
[399566067,1766490642618,-371.69323232,0.00017,2]
[399566068,1766490642726,-3524.0,0.00017,2]
[399566069,1766490642737,-17908.00896982,0.00017,2]
[399566071,1766490645511,-2169.16492796,0.00017,2]
[399566072,1766490645523,-1203.12010318,0.00017,2]
[399566073,1766490645535,-459.58986104,0.00017,2]
[399566074,1766490645670,-2128.79801935,0.00017,2]
[399566075,1766490645724,-655.3938732,0.00017,2]
[399566076,1766491690224,155.17,7.355e-05,2]
[399566077,1766491690638,155.17,7.764e-05,2]
[399566078,1766491690848,155.17,8.172e-05,2]
[399566079,1766491691048,155.17,8.581e-05,2]
[399566080,1766491691247,155.17,8.989e-05,2]
[399566081,1766491691451,155.17,9.398e-05,2]
[399566082,1766491691661,155.17,9.807e-05,2]
[399566083,1766491691882,155.17,0.00010215,2]
[399566084,1766491692108,155.17,0.00010624,2]
[399566085,1766491692322,155.17,0.00011032,2]
[399566086,1766491692519,155.17,0.00011441,2]
[399566087,1766491692715,155.17,0.0001185,2]
[399566088,1766491692913,155.17,0.00012258,2]
[399566089,1766491693118,155.17,0.00012667,2]
[399566096,1766491831497,-155.17,0.00013075,2]
[399566097,1766491831506,-131.89431718,0.00013238,2]
[399566098,1766491831518,-368.10568282,0.00013238,2]
[399566099,1766491831528,-168.19920028,0.00013238,2]
[399566100,1766491831538,-653.327,0.0001324,2]
[399566101,1766491831548,-178.64223446,0.0001331,2]
[399566102,1766491831557,-150.0,0.00013399,2]
[399566103,1766491831567,-300.0,0.00013399,2]
[399566104,1766491831577,-300.0,0.00013399,2]
[399566105,1766491831586,-300.0,0.00013399,2]
[399566106,1766491831596,-1200.0,0.00013399,2]
[399566107,1766491831606,-300.0,0.00013399,2]
[399566108,1766491831615,-2181.72588234,0.000134,2]
[399566109,1766491831626,-4031.53528395,0.000134,2]
[399566110,1766491831637,-622.55672686,0.000134,2]
[399566111,1766491831649,-254.72572641,0.000134,2]
[399566112,1766491831659,-3513.22526362,0.000134,2]
[399566113,1766491831671,-422.60949618,0.000134,2]
[399566123,1766491837609,-1088.1197,0.000133,2]
[399566124,1766491837619,-133.14776359,0.00013399,2]
[399566125,1766491837631,-516.76956178,0.00013399,2]
[399566126,1766491837640,-997.11569305,0.000134,2]
[399566127,1766491837663,-358.33485164,0.000134,2]
[399566128,1766491837675,-2069.14542182,0.000134,2]
[399566129,1766491837688,-15389.1845083,0.000134,2]
[399566130,1766491837699,-254.18043806,0.000134,2]
[399566131,1766491837719,-1060.79010355,0.000134,2]
[399566132,1766491837730,-2053.64958982,0.000134,2]
[399566133,1766491837778,-707.82344134,0.000134,2]
[399566140,1766491839675,-591.566251,0.000134,2]
[399566141,1766491839689,-4979.76509798,0.000134,2]
[399566142,1766491839703,-1670.25,0.000134,2]
[399566143,1766491839715,-590.9981233,0.000134,2]
[399566144,1766491839729,-612.81631386,0.000134,2]
[399566145,1766491839785,-532.11943265,0.000134,2]
[399566146,1766491839892,-341475.15249116,0.000134,2]
[399566148,1766491840131,-359.34614479,0.000134,2]
[399566149,1766491840146,-5927.00000003,0.000134,2]
[399566150,1766491840157,-2993.80498,0.000134,2]
[399566151,1766491840169,-999.0,0.000134,2]
[399566152,1766491840180,-258.6914863,0.000134,2]
[399566169,1766491842856,-605092.88725199,0.000134,2]
[399566170,1766491842866,-1000.0,0.0001341,2]
[399566171,1766491842875,-155.17,0.00013484,2]
[399566172,1766491842885,-1200.0,0.00013497,2]
[399566173,1766491842894,-97984.73124674,0.000135,2]
[399566174,1766491842908,-151.0,0.00013502,2]
[399566175,1766491842917,-151.0,0.00013502,2]
[399566176,1766491842927,-151.0,0.00013502,2]
[399566177,1766491842936,-151.0,0.00013502,2]
[399566178,1766491842944,-151.0,0.00013502,2]
[399566179,1766491842954,-151.0,0.00013502,2]
[399566180,1766491842963,-151.0,0.00013502,2]
[399566181,1766491842972,-151.0,0.00013502,2]
[399566182,1766491842982,-151.0,0.00013502,2]
[399566183,1766491842991,-151.0,0.00013502,2]
[399566184,1766491843000,-151.0,0.00013502,2]
[399566185,1766491843009,-200.0,0.00013502,2]
[399566186,1766491843018,-155.17,0.00013893,2]
[399566187,1766491843028,-851.79408698,0.00014262,2]
[399566188,1766491843037,-155.17,0.00014301,2]
[399566189,1766491843046,-553.47006822,0.00014462,2]
[399566190,1766491843055,-167.0,0.00014511,2]
[399566191,1766491843065,-300.0,0.00014688,2]
[399566192,1766491843074,-420.0,0.00014688,2]
[399566193,1766491843083,-155.17,0.0001471,2]
[399566194,1766491843093,-1680.0,0.00014739,2]
[399566195,1766491843103,-322.6107,0.00014912,2]
[399566196,1766491843112,-572.07789718,0.00014912,2]
[399566197,1766491843122,-250.0,0.00014912,2]
[399566198,1766491843131,-250.0,0.00014912,2]
[399566199,1766491843140,-250.0,0.00014912,2]
[399566200,1766491843149,-250.0,0.00014912,2]
[399566201,1766491843158,-500.0,0.00014912,2]
[399566202,1766491843168,-500.0,0.00014912,2]
[399566203,1766491843178,-574.12855637,0.00014912,2]
[399566204,1766491843187,-500.0,0.00014912,2]
[399566205,1766491843198,-500.0,0.00014912,2]
[399566206,1766491843207,-500.0,0.00014912,2]
[399566207,1766491843216,-500.0,0.00014912,2]
[399566208,1766491843225,-500.0,0.00014912,2]
[399566209,1766491843235,-500.0,0.00014912,2]
[399566210,1766491843244,-500.0,0.00014912,2]
[399566211,1766491843254,-250.0,0.00014912,2]
[399566212,1766491843263,-500.0,0.00014912,2]
[399566213,1766491843272,-250.0,0.00014912,2]
[399566214,1766491843281,-500.0,0.00014912,2]
[399566215,1766491843294,-250.0,0.00014912,2]
[399566216,1766491843303,-250.0,0.00014912,2]
[399566217,1766491843312,-1108.0,0.00014912,2]
[399566218,1766491843322,-1347.06,0.00014957,2]
[399566219,1766491843331,-3200.87,0.00014963,2]
[399566220,1766491843341,-999.0,0.00014978,3]
[399566221,1766491843351,-12450.81,0.00015001,2]
[399566222,1766491843360,-595.37131296,0.0001546,2]